fUSD/lending_fUSD_20250523
["ID","MTS","AMOUNT","RATE_DAILY","PERIOD"]
[362147056,1748038232119,-3292.0,0.00026194,2]
[362147057,1748038232131,-150.0,0.000277,2]
[362147058,1748038232141,-643.0,0.00028476,2]
[362147059,1748038232151,-4609.0,0.00028659,2]
[362147060,1748038232161,-154.0,0.00028802,2]
[362147061,1748038232170,-150.0,0.00028836,7]
[362147062,1748038232180,-48279.49,0.00028881,2]
[362147063,1748038232189,-200.0,0.0002891,2]
[362147064,1748038232199,-150.0,0.00028946,2]
[362147065,1748038232209,-1000.0,0.00028973,2]
[362147066,1748038232218,-671.38,0.00028977,120]
[362147067,1748038232227,-500.0,0.00028978,2]
[362147068,1748038232238,-1897.84,0.00028981,2]
[362147069,1748038232248,-848.05,0.00028982,2]
[362147070,1748038232258,-554.654679,0.00029079,4]
[362147071,1748038232267,-4000.0,0.0002968,2]
[362147072,1748038232276,-700.0,0.000297,10]
[362147073,1748038232285,-168.41,0.000297,2]
[362147074,1748038232295,-1100.0,0.000298,10]
[362147078,1748038232304,-170.33310645,0.00029869,2]
[362147080,1748038232314,-521.16221726,0.0002987,2]
[362147083,1748038232327,-459.6432317,0.000299,2]
[362147084,1748038232336,-1500.0,0.000299,10]
[362147085,1748038232345,-459.6432317,0.000299,2]
[362147086,1748038232354,-459.6432317,0.000299,2]
[362147087,1748038232366,-459.6432317,0.000299,2]
[362147088,1748038232375,-459.6432317,0.000299,2]
[362147089,1748038232385,-459.6432317,0.000299,2]
[362147090,1748038232395,-459.6432317,0.000299,2]
[362147091,1748038232405,-459.6432317,0.000299,2]
[362147092,1748038232414,-252.0255941,0.000299,21]
[362147093,1748038232424,-459.6432317,0.000299,2]
[362147094,1748038232433,-459.6432317,0.000299,2]
[362147095,1748038232442,-170.17,0.000299,2]
[362147096,1748038232451,-459.6432317,0.000299,2]
[362147097,1748038232461,-459.6432317,0.000299,2]
[362147098,1748038232471,-2699.0667,0.00029945,10]
[362147099,1748038232481,-21942.87917796,0.0002996,3]
[362147100,1748038232492,-202190.02212707,0.0002996,3]
[362147128,1748038239779,-3205.67,0.00028802,2]
[362147129,1748038239788,-568.9555616,0.00029078,2]
[362147130,1748038239798,-179.83038647,0.00029078,2]
[362147131,1748038239807,-300.0,0.00029959,2]
[362147132,1748038239816,-112370.16822097,0.0002996,3]
[362147133,1748038239826,-200.0,0.0002996,2]
[362147134,1748038239835,-152.24,0.0002996,2]
[362147135,1748038239844,-152.24,0.00029969,2]
[362147136,1748038239853,-150.0,0.00029969,2]
[362147137,1748038239863,-365.0,0.0002997,5]
[362147138,1748038239872,-530.38637343,0.0002997,3]
[362147139,1748038239881,-417371.91164557,0.0002997,3]
[362147140,1748038239979,-53681.97230423,0.0002997,3]
[362147141,1748038239993,-64843.55689754,0.0002997,3]
[362147142,1748038240005,-114585.68832748,0.0002997,3]
[362147143,1748038240015,-758.8,0.0002997,3]
[362147144,1748038240027,-3001.35793358,0.0002997,3]
[362147145,1748038240159,-878.0,0.00025802,2]
[362147146,1748038240169,-181898.04412043,0.0002997,3]
[362147147,1748038240178,-209.558063,0.0002997,7]
[362147148,1748038240187,-151.0,0.0002997,7]
[362147149,1748038240197,-151.0,0.0002997,7]
[362147150,1748038240206,-151.0,0.0002997,7]
[362147151,1748038240216,-151.0,0.0002997,7]
[362147152,1748038240225,-151.0,0.0002997,7]
[362147153,1748038240234,-151.0,0.0002997,7]
[362147154,1748038240243,-5484.1470982,0.0002997,2]
[362147155,1748038240253,-1542.6701676,0.0002997,2]
[362147156,1748038240262,-216224.5331425,0.0002997,2]
[362147157,1748038240271,-23111.1342429,0.0002997,2]
[362147158,1748038240280,-150.0,0.00029972,2]
[362147159,1748038240289,-500.0,0.00029973,5]
[362147160,1748038240299,-500.0,0.00029973,5]
[362147161,1748038240309,-500.0,0.00029973,5]
[362147162,1748038240319,-150.0,0.00029973,7]
[362147163,1748038240332,-150.0,0.00029973,7]
[362147164,1748038240341,-150.0,0.00029973,7]
[362147165,1748038240351,-150.0,0.00029973,7]
[362147166,1748038240360,-150.0,0.00029973,7]
[362147167,1748038240372,-150.0,0.00029973,7]
[362147168,1748038240381,-150.0,0.00029973,7]
[362147169,1748038240391,-150.0,0.00029973,7]
[362147170,1748038240402,-150.0,0.00029973,7]
[362147171,1748038240412,-150.0,0.00029973,7]
[362147172,1748038240421,-150.0,0.00029973,7]
[362147173,1748038240430,-500.0,0.00029973,5]
[362147174,1748038240439,-332.56,0.00029978,2]
[362147175,1748038240448,-500.0,0.00029978,30]
[362147176,1748038240457,-151.0,0.00029979,7]
[362147177,1748038240466,-151.0,0.00029979,7]
[362147178,1748038240476,-151.0,0.00029979,5]
[362147179,1748038240485,-151.0,0.00029979,7]
[362147180,1748038240494,-151.430603,0.00029979,7]
[362147181,1748038240503,-5484.1470982,0.00029979,2]
[362147182,1748038240512,-5484.1470982,0.00029979,2]
[362147183,1748038240521,-159.06441559,0.00029979,7]
[362147184,1748038240530,-151.16479345,0.00029979,7]
[362147185,1748038240540,-151.99940856,0.00029979,7]
[362147186,1748038240550,-152.59800254,0.00029979,7]
[362147187,1748038240559,-345.742299,0.00029979,7]
[362147188,1748038240569,-345.742299,0.00029979,7]
[362147189,1748038240578,-345.742299,0.00029979,7]
[362147190,1748038240587,-345.742299,0.00029979,7]
[362147191,1748038240596,-1542.6701676,0.00029979,2]
[362147192,1748038240606,-173535.9015208,0.00029979,2]
[362147193,1748038240615,-151.0,0.00029979,7]
[362147194,1748038240625,-151.0,0.00029979,7]
[362147195,1748038240635,-151.0,0.00029979,7]
[362147196,1748038240644,-18548.3647841,0.00029979,2]
[362147197,1748038240653,-152.24,0.0002998,2]
[362147198,1748038240662,-1000.0,0.00029988,2]
[362147200,1748038240671,-151.0,0.00029989,7]
[362147201,1748038240681,-244095.72629087,0.0002999,30]
[362147202,1748038240690,-3020.50151911,0.0002999,3]
[362147203,1748038240701,-229.78959687,0.0002999,2]
[362147204,1748038240710,-211.0,0.0002999,2]
[362147205,1748038240720,-211.0,0.0002999,30]
[362147206,1748038240729,-210.0,0.0002999,2]
[362147207,1748038240738,-210.0,0.0002999,2]
[362147208,1748038240747,-214.0,0.0002999,2]
[362147209,1748038240757,-215.0,0.0002999,2]
[362147210,1748038240767,-208.0,0.0002999,2]
[362147211,1748038240776,-154.488801,0.0002999,7]
[362147212,1748038240785,-345.742299,0.0002999,7]
[362147213,1748038240794,-345.742299,0.0002999,7]
[362147214,1748038240804,-152.24,0.0002999,2]
[362147215,1748038240814,-152.24,0.0002999,2]
[362147216,1748038240824,-152.24,0.0002999,2]
[362147217,1748038240834,-152.24,0.0002999,2]
[362147218,1748038240843,-152.24,0.0002999,2]
[362147219,1748038240853,-152.24,0.0002999,2]
[362147220,1748038240863,-152.24,0.0002999,2]
[362147221,1748038240874,-151.0,0.0002999,7]
[362147222,1748038240884,-159.993112,0.0002999,7]
[362147223,1748038240894,-1035.50121157,0.00029999,15]
[362147224,1748038240903,-1035.50121157,0.00029999,15]
[362147225,1748038240913,-1035.50121158,0.00029999,15]
[362147226,1748038240922,-1000.0,0.00029999,2]
[362147227,1748038240931,-336.3135,0.00029999,2]
[362147228,1748038240941,-1047808.38860956,0.0003,2]
[362147229,1748038240953,-1532.12499601,0.0003,2]
[362147230,1748038240962,-1000.78230548,0.0003,120]
[362147231,1748038240972,-3740.0,0.0003,2]
[362147232,1748038240981,-10000.0,0.0003,5]
[362147233,1748038240990,-300.0,0.0003,120]
[362147234,1748038241000,-4459.0,0.0003,10]
[362147235,1748038241009,-500.0,0.0003,30]
[362147236,1748038241019,-500.0,0.0003,30]
[362147237,1748038241028,-672.11557311,0.0003,30]
[362147238,1748038241037,-231.0256022,0.0003,120]
[362147239,1748038241047,-202.0,0.0003,30]
[362147240,1748038241057,-1504.14768357,0.0003,30]
[362147241,1748038241067,-280.0,0.0003,120]
[362147242,1748038241076,-10095.67326235,0.0003,30]
[362147243,1748038241085,-27405.1229777,0.0003,5]
[362147244,1748038241095,-19840.51312021,0.0003,5]
[362147245,1748038241106,-19245.72717822,0.0003,2]
[362147246,1748038241116,-573.66420626,0.0003,2]
[362147247,1748038241125,-1757.41152557,0.0003,2]
[362147248,1748038241135,-530.31468227,0.0003,120]
[362147249,1748038241144,-2115.56221058,0.0003,120]
[362147250,1748038241153,-161.24783577,0.0003,2]
[362147251,1748038241163,-2624.78430252,0.0003,30]
[362147252,1748038241172,-803.10739,0.0003,30]
[362147253,1748038241182,-1000.0,0.0003,2]
[362147254,1748038241193,-348.75448312,0.0003,2]
[362147255,1748038241204,-946.0482281,0.0003,31]
[362147256,1748038241213,-18783.58,0.0003,7]
[362147257,1748038241223,-472.43679917,0.0003,60]
[362147258,1748038241234,-3018.99999901,0.0003,3]
[362147259,1748038241243,-863.45,0.0003,7]
[362147260,1748038241254,-407.6077247,0.0003,14]
[362147261,1748038241264,-155.0,0.0003,2]
[362147262,1748038241274,-345.742299,0.0003,7]
[362147263,1748038241284,-345.742299,0.0003,7]
[362147264,1748038241293,-217.0,0.0003,2]
[362147265,1748038241303,-151.0,0.0003,7]
[362147266,1748038241313,-165.12,0.00030003,2]
[362147267,1748038241324,-150.0,0.00030038,7]
[362147268,1748038241334,-4000.0,0.0003008,2]
[362147269,1748038241344,-152.24,0.000301,2]
[362147270,1748038241353,-150.0,0.00030104,7]
[362147271,1748038241363,-150.0,0.00030106,2]
[362147272,1748038241372,-12083.54,0.0003011,2]
[362147273,1748038241381,-4477.11678085,0.0003013,2]
[362147274,1748038241391,-5011.24074244,0.0003013,2]
[362147275,1748038241401,-195.17410145,0.0003013,2]
[362147276,1748038241412,-400.0,0.0003013,2]
[362147277,1748038241421,-906.76,0.00030136,11]
[362147278,1748038241432,-700.0,0.00030136,120]
[362147279,1748038241442,-700.0,0.00030136,120]
[362147280,1748038241451,-700.0,0.00030136,120]
[362147281,1748038241461,-700.0,0.00030136,120]
[362147282,1748038241471,-700.0,0.00030136,120]
[362147283,1748038241480,-286.26661251,0.00030136,120]
[362147284,1748038241489,-170.46,0.00030137,80]
[362147285,1748038241499,-600.0,0.00030137,2]
[362147286,1748038241508,-150.0,0.0003017,7]
[362147287,1748038241519,-150.0,0.00030188,7]
[362147288,1748038241529,-150.0,0.00030235,7]
[362147289,1748038241539,-130847.269899,0.00030237,2]
[362147290,1748038241549,-151.0,0.00030237,7]
[362147291,1748038241558,-13985.5953254,0.00030237,2]
[362147292,1748038241568,-150.0,0.00030243,2]
[362147293,1748038241577,-150.0,0.00030247,7]
[362147294,1748038241585,-152.24,0.00030248,2]
[362147295,1748038241596,-500.0,0.00030252,30]
[362147296,1748038241606,-1542.6701676,0.00030256,2]
[362147297,1748038241615,-8557.88054587,0.00030258,2]
[362147298,1748038241625,-829.9657919,0.00030258,7]
[362147299,1748038241635,-200.0,0.0003026,2]
[362147300,1748038241852,-56485.12097519,0.00030277,2]
[362147301,1748038241862,-515.58888807,0.00030277,3]
[362147302,1748038241872,-39531.23013236,0.00030277,3]
[362147303,1748038241882,-345.742299,0.00030277,7]
[362147304,1748038241892,-345.742299,0.00030277,7]
[362147305,1748038241901,-150.0,0.00030301,7]
[362147306,1748038241911,-965.38752383,0.00030303,2]
[362147307,1748038241920,-150.0,0.00030333,2]
[362147308,1748038241930,-150.0,0.00030367,7]
[362147309,1748038241940,-400.0,0.0003037,2]
[362147310,1748038241950,-400.0,0.0003037,2]
[362147311,1748038241959,-300.0,0.0003037,2]
[362147312,1748038241968,-150.0,0.0003038,2]
[362147313,1748038241978,-150.0,0.00030404,7]
[362147314,1748038241987,-1897.84,0.0003043,2]
[362147315,1748038241996,-150.0,0.00030432,7]
[362147316,1748038242007,-300.0,0.0003047,2]
[362147317,1748038242016,-400.0,0.0003047,2]
[362147318,1748038242027,-150.0,0.00030476,7]
[362147319,1748038242037,-150.0,0.00030498,7]
[362147320,1748038242047,-5744.09004072,0.000305,7]
[362147321,1748038242057,-150.0,0.000305,4]
[362147322,1748038242067,-209.0,0.000305,3]
[362147323,1748038242077,-150.0,0.00030517,2]
[362147324,1748038242087,-1000.0,0.00030521,5]
[362147325,1748038242096,-1002.51619685,0.00030521,5]
[362147326,1748038242107,-1000.0,0.00030521,5]
[362147327,1748038242117,-1000.0,0.00030521,5]
[362147328,1748038242126,-150.0,0.00030522,7]
[362147329,1748038242136,-534.75651836,0.00030526,30]
[362147330,1748038242145,-155.0,0.00030548,2]
[362147331,1748038242155,-3816.01951284,0.00030553,2]
[362147332,1748038242164,-150.0,0.00030564,7]
[362147333,1748038242173,-8557.88054587,0.00030579,2]
[362147334,1748038242182,-150.0,0.0003062,7]
[362147335,1748038242192,-150.0,0.00030629,7]
[362147336,1748038242202,-150.0,0.00030654,2]
[362147337,1748038242211,-3816.01951284,0.00030669,2]
[362147338,1748038242220,-150.0,0.00030695,7]
[362147339,1748038242230,-4000.0,0.000307,2]
[362147340,1748038242239,-150.0,0.00030728,7]
[362147341,1748038242248,-150.0,0.00030728,7]
[362147342,1748038242257,-150.0,0.00030761,7]
[362147343,1748038242267,-3816.01951284,0.00030784,2]
[362147344,1748038242276,-152.24,0.0003079,2]
[362147345,1748038242286,-150.0,0.00030791,2]
[362147346,1748038242295,-150.0,0.00030796,7]
[362147347,1748038242305,-18783.58,0.000308,7]
[362147348,1748038242316,-863.45,0.000308,7]
[362147349,1748038242329,-1900.0,0.000308,11]
[362147350,1748038242338,-150.0,0.00030826,7]
[362147351,1748038242347,-150.0,0.00030836,7]
[362147352,1748038242357,-157.69236961,0.00030851,15]
[362147353,1748038242366,-170.33310645,0.00030875,2]
[362147354,1748038242376,-150.0,0.0003088,120]
[362147355,1748038242385,-150.0,0.00030892,7]
[362147356,1748038242395,-1127.90418878,0.000309,2]
[362147357,1748038242405,-216.6305344,0.000309,2]
[362147358,1748038242415,-3816.01951284,0.000309,2]
[362147359,1748038242424,-8557.88054587,0.000309,2]
[362147360,1748038242433,-300.0,0.000309,11]
[362147361,1748038242442,-5564.4062284,0.000309,2]
[362147362,1748038242451,-31927.23338572,0.000309,2]
[362147363,1748038242460,-222.21156386,0.000309,6]
[362147364,1748038242470,-622.22867821,0.000309,2]
[362147366,1748038242481,-2502.82138455,0.000309,2]
[362147367,1748038242490,-151.0,0.000309,7]
[362147368,1748038242500,-1402.56405318,0.000309,2]
[362147369,1748038242509,-898.807358,0.000309,2]
[362147370,1748038242519,-150.0,0.00030928,2]
[362147371,1748038242527,-150.0,0.00030958,7]
[362147372,1748038242538,-152.24,0.00030969,2]
[362147373,1748038242548,-500.0,0.00030973,5]
[362147374,1748038242558,-500.0,0.00030973,5]
[362147375,1748038242567,-500.0,0.00030973,5]
[362147376,1748038242577,-412.49578723,0.00030973,5]
[362147377,1748038242587,-500.0,0.00030973,5]
[362147378,1748038242596,-500.0,0.00030973,5]
[362147379,1748038242605,-500.0,0.00030973,5]
[362147380,1748038242614,-500.0,0.00030973,5]
[362147381,1748038242624,-500.0,0.00030973,5]
[362147382,1748038242634,-500.0,0.00030973,5]
[362147383,1748038242643,-500.0,0.00030973,5]
[362147385,1748038242653,-500.0,0.00030973,5]
[362147386,1748038242662,-5484.1470982,0.00030979,2]
[362147387,1748038242672,-5484.1470982,0.00030979,2]
[362147388,1748038242682,-5484.1470982,0.00030979,2]
[362147389,1748038242691,-345.742299,0.00030979,7]
[362147390,1748038242701,-345.742299,0.00030979,7]
[362147391,1748038242711,-1542.6701676,0.00030979,2]
[362147392,1748038242720,-1542.6701676,0.00030979,2]
[362147393,1748038242731,-1542.6701676,0.00030979,2]
[362147394,1748038242740,-88158.6382773,0.00030979,2]
[362147395,1748038242750,-45470.0066555,0.00030979,2]
[362147396,1748038242759,-2781.3750338,0.00030979,2]
[362147397,1748038242769,-9422.8258666,0.00030979,2]
[362147398,1748038242779,-4860.0564079,0.00030979,2]
[362147399,1748038242788,-297.2869491,0.00030979,2]
[362147400,1748038242797,-150.0,0.00030979,7]
[362147401,1748038242976,-150.0,0.00030979,7]
[362147402,1748038242987,-152.24,0.0003099,2]
[362147404,1748038242996,-152.24,0.0003099,2]
[362147405,1748038243007,-152.24,0.0003099,2]
[362147406,1748038243016,-152.24,0.0003099,2]
[362147407,1748038243026,-152.24,0.0003099,2]
[362147408,1748038243035,-152.24,0.0003099,2]
[362147409,1748038243044,-152.24,0.0003099,2]
[362147410,1748038243053,-152.24,0.0003099,2]
[362147411,1748038243062,-152.24,0.0003099,2]
[362147412,1748038243072,-152.24,0.0003099,2]
[362147413,1748038243082,-152.24,0.0003099,2]
[362147414,1748038243091,-360000.0,0.00031,3]
[362147415,1748038243101,-528344.30570353,0.00031,120]
[362147416,1748038243111,-113815.6763769,0.00031,120]
[362147417,1748038243120,-300.0,0.00031,120]
[362147418,1748038243130,-500.0,0.00031,2]
[362147419,1748038243139,-45000.0,0.00031,6]
[362147420,1748038243148,-605887.01082948,0.00031,120]
[362147421,1748038243159,-900.0,0.00031,32]
[362147422,1748038243168,-192524.56057484,0.00031,2]
[362147423,1748038243178,-1704.3365897,0.00031,2]
[362147424,1748038243187,-345.742299,0.00031,7]
[362147425,1748038243198,-345.742299,0.00031,7]
[362147426,1748038243207,-345.742299,0.00031,7]
[362147427,1748038243217,-345.742299,0.00031,7]
[362147428,1748038243226,-345.742299,0.00031,7]
[362147429,1748038243236,-345.742299,0.00031,7]
[362147430,1748038243246,-151.0,0.00031,7]
[362147431,1748038243256,-151.0,0.00031,7]
[362147432,1748038243265,-205.257166,0.00031,7]
[362147433,1748038243275,-150.0,0.00031023,7]
[362147434,1748038243285,-237.49,0.00031033,2]
[362147435,1748038243295,-150.0,0.00031051,7]
[362147436,1748038243304,-150.0,0.00031065,2]
[362147437,1748038243314,-288.70585708,0.00031068,5]
[362147439,1748038243327,-1002.13207813,0.00031068,5]
[362147441,1748038243336,-1500.0,0.00031068,5]
[362147443,1748038243346,-150.0,0.00031071,7]
[362147445,1748038243356,-150.0,0.00031089,7]
[362147447,1748038243367,-155.0,0.00031096,2]
[362147449,1748038243377,-1922.91,0.00031114,2]
[362147451,1748038243387,-227.01298832,0.00031134,2]
[362147453,1748038243398,-150.0,0.00031154,7]
[362147455,1748038243408,-150.0,0.00031202,2]
[362147457,1748038243418,-150.0,0.0003122,7]
[362147459,1748038243427,-421.71,0.00031233,2]
[362147461,1748038243437,-150.0,0.00031233,2]
[362147463,1748038243447,-453.43,0.00031233,2]
[362147465,1748038243457,-340.13,0.00031233,2]
[362147467,1748038243467,-340.27,0.00031233,2]
[362147469,1748038243476,-150.0,0.00031267,7]
[362147471,1748038243486,-150.0,0.00031286,7]
[362147473,1748038243496,-150.0,0.00031311,2]
[362147475,1748038243505,-4000.0,0.0003133,2]
[362147477,1748038243515,-150.0,0.00031339,2]
[362147479,1748038243524,-150.0,0.00031346,7]
[362147481,1748038243534,-332.56,0.00031348,2]
[362147483,1748038243543,-184.52,0.00031348,2]
[362147485,1748038243554,-150.0,0.00031351,7]
[362147487,1748038243563,-521.16221723,0.00031356,2]
[362147489,1748038243573,-6453.0,0.00031357,3]
[362147491,1748038243583,-500.0,0.00031373,5]
[362147493,1748038243593,-152.24,0.0003139,2]
[362147495,1748038243603,-35718.97185174,0.000314,30]
[362147497,1748038243612,-500.0,0.000314,2]
[362147499,1748038243622,-500.0,0.000314,2]
[362147501,1748038243631,-500.0,0.000314,2]
[362147503,1748038243641,-500.0,0.000314,2]
[362147505,1748038243650,-500.0,0.000314,2]
[362147507,1748038243659,-500.0,0.000314,2]
[362147509,1748038243669,-500.0,0.000314,2]
[362147511,1748038243678,-500.0,0.000314,2]
[362147513,1748038243688,-500.0,0.000314,2]
[362147515,1748038243697,-500.0,0.000314,2]
[362147517,1748038243707,-500.0,0.000314,2]
[362147519,1748038243718,-500.0,0.000314,2]
[362147521,1748038243728,-500.0,0.000314,2]
[362147523,1748038243738,-500.0,0.000314,2]
[362147525,1748038243747,-500.0,0.000314,2]
[362147527,1748038243757,-500.0,0.000314,2]
[362147529,1748038243767,-500.0,0.000314,2]
[362147531,1748038243776,-500.0,0.000314,2]
[362147533,1748038243785,-500.0,0.000314,2]
[362147535,1748038243795,-500.0,0.000314,2]
[362147537,1748038243804,-500.0,0.000314,2]
[362147539,1748038243814,-500.0,0.000314,2]
[362147541,1748038243824,-500.0,0.000314,2]
[362147543,1748038243833,-500.0,0.000314,2]
[362147545,1748038243843,-500.0,0.000314,2]
[362147547,1748038243852,-500.0,0.000314,2]
[362147548,1748038243862,-500.0,0.000314,2]
[362147550,1748038243872,-500.0,0.000314,2]
[362147553,1748038243881,-500.0,0.000314,2]
[362147554,1748038243891,-500.0,0.000314,2]
[362147557,1748038243901,-500.0,0.000314,2]
[362147558,1748038243911,-500.0,0.000314,2]
[362147560,1748038243921,-500.0,0.000314,2]
[362147563,1748038243931,-500.0,0.000314,2]
[362147565,1748038243940,-500.0,0.000314,2]
[362147567,1748038243950,-500.0,0.000314,2]
[362147568,1748038243960,-500.0,0.000314,2]
[362147570,1748038243969,-500.0,0.000314,2]
[362147572,1748038243979,-500.0,0.000314,2]
[362147575,1748038243992,-500.0,0.000314,2]
[362147576,1748038244002,-500.0,0.000314,2]
[362147578,1748038244011,-500.0,0.000314,2]
[362147580,1748038244021,-500.0,0.000314,2]
[362147582,1748038244030,-500.0,0.000314,2]
[362147584,1748038244040,-500.0,0.000314,2]
[362147586,1748038244049,-500.0,0.000314,2]
[362147588,1748038244059,-500.0,0.000314,2]
[362147590,1748038244069,-500.0,0.000314,2]
[362147592,1748038244079,-500.0,0.000314,2]
[362147594,1748038244088,-500.0,0.000314,2]
[362147596,1748038244098,-500.0,0.000314,2]
[362147598,1748038244107,-500.0,0.000314,2]
[362147600,1748038244117,-500.0,0.000314,2]
[362147602,1748038244126,-500.0,0.000314,2]
[362147604,1748038244135,-500.0,0.000314,2]
[362147606,1748038244145,-742.0,0.000314,2]
[362147608,1748038244155,-500.0,0.000314,2]
[362147610,1748038244164,-500.0,0.000314,2]
[362147612,1748038244173,-500.0,0.000314,2]
[362147614,1748038244183,-500.0,0.000314,2]
[362147616,1748038244193,-500.0,0.000314,2]
[362147618,1748038244202,-500.0,0.000314,2]
[362147620,1748038244212,-500.0,0.000314,2]
[362147622,1748038244221,-500.0,0.000314,2]
[362147624,1748038244230,-500.0,0.000314,2]
[362147626,1748038244240,-500.0,0.000314,2]
[362147628,1748038244249,-500.0,0.000314,2]
[362147630,1748038244259,-500.0,0.000314,2]
[362147632,1748038244268,-500.0,0.000314,2]
[362147634,1748038244277,-500.0,0.000314,2]
[362147636,1748038244286,-500.0,0.000314,2]
[362147638,1748038244296,-500.0,0.000314,2]
[362147640,1748038244305,-500.0,0.000314,2]
[362147642,1748038244315,-500.0,0.000314,2]
[362147644,1748038244326,-500.0,0.000314,2]
[362147646,1748038244335,-500.0,0.000314,2]
[362147648,1748038244344,-500.0,0.000314,2]
[362147650,1748038244353,-500.0,0.000314,2]
[362147651,1748038244363,-612.0,0.000314,2]
[362147654,1748038244372,-500.0,0.000314,2]
[362147656,1748038244382,-500.0,0.000314,2]
[362147657,1748038244391,-500.0,0.000314,2]
[362147659,1748038244401,-500.0,0.000314,2]
[362147661,1748038244410,-500.0,0.000314,2]
[362147663,1748038244419,-500.0,0.000314,2]
[362147665,1748038244429,-500.0,0.000314,2]
[362147667,1748038244438,-500.0,0.000314,2]
[362147669,1748038244448,-500.0,0.000314,2]
[362147671,1748038244458,-500.0,0.000314,2]
[362147673,1748038244467,-500.0,0.000314,2]
[362147675,1748038244477,-500.0,0.000314,2]
[362147677,1748038244486,-500.0,0.000314,2]
[362147679,1748038244495,-500.0,0.000314,2]
[362147681,1748038244504,-500.0,0.000314,2]
[362147683,1748038244515,-500.0,0.000314,2]
[362147684,1748038244524,-500.0,0.000314,2]
[362147685,1748038244534,-500.0,0.000314,2]
[362147686,1748038244544,-500.0,0.000314,2]
[362147687,1748038244553,-500.0,0.000314,2]
[362147688,1748038244563,-500.0,0.000314,2]
[362147689,1748038244572,-500.0,0.000314,2]
[362147690,1748038244581,-500.0,0.000314,2]
[362147691,1748038244590,-500.0,0.000314,2]
[362147692,1748038244600,-500.0,0.000314,2]
[362147693,1748038244610,-500.0,0.000314,2]
[362147694,1748038244620,-500.0,0.000314,2]
[362147695,1748038244630,-500.0,0.000314,2]
[362147696,1748038244639,-500.0,0.000314,2]
[362147697,1748038244649,-500.0,0.000314,2]
[362147698,1748038244659,-500.0,0.000314,2]
[362147699,1748038244668,-500.0,0.000314,2]
[362147700,1748038244677,-500.0,0.000314,2]
[362147701,1748038244687,-500.0,0.000314,2]
[362147702,1748038244697,-500.0,0.000314,2]
[362147703,1748038244707,-500.0,0.000314,2]
[362147704,1748038244717,-500.0,0.000314,2]
[362147705,1748038244727,-500.0,0.000314,2]
[362147706,1748038244736,-500.0,0.000314,2]
[362147707,1748038244746,-500.0,0.000314,2]
[362147708,1748038244755,-500.0,0.000314,2]
[362147709,1748038244765,-551.0,0.000314,2]
[362147710,1748038244775,-500.0,0.000314,2]
[362147711,1748038244785,-500.0,0.000314,2]
[362147712,1748038244795,-500.0,0.000314,2]
[362147713,1748038244805,-500.0,0.000314,2]
[362147714,1748038244815,-500.0,0.000314,2]